bitfinex-derivatives/quotes_BTCF0:USTF0_20241110
["timestamp","ask_amount","ask_price","bid_price","bid_amount"]
[1731209722625,0.032308,77337.0,77333.0,0.1086]
[1731209723222,0.032308,77337.0,77326.0,0.05013567]
[1731209723529,0.08685647,77329.0,77327.0,0.19551072]
[1731209723723,0.08685647,77329.0,77328.0,0.08691072]
[1731209724028,0.08685647,77329.0,77328.0,0.19051694]
[1731209724426,0.08685647,77329.0,77328.0,0.08691072]
[1731209726631,0.08685647,77329.0,77328.0,0.16428987]
[1731209727025,0.08685647,77329.0,77328.0,0.08691072]
[1731209727425,0.08685647,77329.0,77328.0,0.16428987]
[1731209728933,0.08685647,77329.0,77328.0,0.08691072]
[1731209730637,0.17371294,77329.0,77328.0,0.08691072]
[1731209731237,0.032312,77328.0,77326.0,0.01782367]
[1731209732837,0.032312,77328.0,77326.0,0.00193953]
[1731209733738,0.08685647,77327.0,77326.0,0.00193953]
[1731209734437,0.08685647,77327.0,77326.0,0.08910455]
[1731209736153,0.08685647,77327.0,77326.0,0.00193953]
[1731209736154,0.17371294,77327.0,77326.0,0.00193953]
[1731209739049,0.08685647,77327.0,77326.0,0.00193953]
[1731209739448,0.17371294,77327.0,77326.0,0.00193953]
[1731209740956,0.17371294,77327.0,77326.0,0.04065028]
[1731209741458,0.17371294,77327.0,77326.0,0.00193953]
[1731209741651,0.17371294,77327.0,77326.0,0.04065526]
[1731209742354,0.17371294,77327.0,77326.0,0.00193953]
[1731209742960,0.08685647,77327.0,77326.0,0.00193953]
[1731209743256,0.17371294,77327.0,77326.0,0.00193953]
[1731209743660,0.08685647,77327.0,77326.0,0.00193953]
[1731209747062,0.08685647,77327.0,77326.0,0.06646575]
[1731209747358,0.08685647,77327.0,77326.0,0.08921444]
[1731209752064,0.08685647,77327.0,77326.0,0.08918303]
[1731209752970,0.37748819,77331.0,77326.0,0.08918303]
[1731209753266,0.37748819,77331.0,77328.0,0.032311]
[1731209753267,0.3608,77331.0,77328.0,0.032311]
[1731209753473,0.3608,77331.0,77329.0,0.1197435]
[1731209753660,0.08685647,77330.0,77329.0,0.0325]
[1731209754365,0.032311,77330.0,77329.0,0.0325]
[1731209754662,0.11916747,77330.0,77329.0,0.0325]
[1731209757664,0.08685647,77330.0,77329.0,0.0325]
[1731209758564,0.08685647,77330.0,77326.0,0.00193953]
[1731209758765,0.11916747,77330.0,77326.0,0.00193953]
[1731209760666,0.11916747,77330.0,77329.0,0.06460448]
[1731209760861,0.11916747,77330.0,77329.0,0.15209621]
[1731209761067,0.11916747,77330.0,77329.0,0.08749173]
[1731209761966,0.11916747,77330.0,77329.0,0.15209908]
[1731209762471,0.11916747,77330.0,77329.0,0.08749173]
[1731209762673,0.3608,77330.0,77329.0,0.08749173]
[1731209762879,0.44765647,77330.0,77329.0,0.08749173]
[1731209763072,0.3608,77330.0,77329.0,0.08749173]
[1731209763277,0.44765647,77330.0,77329.0,0.08749173]
[1731209763974,0.3608,77345.0,77329.0,0.58385173]
[1731209764277,0.3608,77345.0,77344.0,0.08685647]
[1731209764577,0.3608,77358.0,77344.0,0.08697512]
[1731209764578,0.08685647,77351.0,77344.0,0.08697512]
[1731209764773,0.08685647,77351.0,77345.0,0.18285853]
[1731209765071,0.08685647,77351.0,77350.0,0.06458341]
[1731209765274,0.08685647,77351.0,77348.0,0.06457527]
[1731209765773,0.08685647,77352.0,77348.0,0.06457527]
[1731209766377,0.08685647,77352.0,77347.0,0.06457527]
[1731209766770,0.00194028,77353.0,77347.0,0.06457527]
[1731209766771,0.08685647,77348.0,77347.0,0.06457527]
[1731209766965,0.08685647,77348.0,77346.0,0.06450138]
[1731209767377,0.08685647,77348.0,77347.0,0.10836]
[1731209771877,0.3608,77351.0,77347.0,0.10836]
[1731209772070,0.00194028,77353.0,77349.0,0.032303]
[1731209772481,0.00194028,77353.0,77350.0,0.05153246]
[1731209772680,0.00194028,77353.0,77350.0,0.08383446]
[1731209772978,0.0326,77369.0,77347.0,0.10836]
[1731209772979,0.08685647,77367.0,77352.0,0.08685647]
[1731209773192,0.08685647,77367.0,77361.0,0.03864672]
[1731209773372,0.08685647,77367.0,77362.0,0.14700672]
[1731209773573,0.08685647,77367.0,77363.0,0.03864672]
[1731209774379,0.08685647,77367.0,77362.0,0.14700672]
[1731209775476,0.08685647,77367.0,77362.0,0.10836]
[1731209776576,0.3616,77370.0,77362.0,0.10836]
[1731209776790,0.00068,77376.0,77369.0,0.08685647]
[1731209776982,0.08685647,77379.0,77369.0,0.08685647]
[1731209777282,0.16112437,77380.0,77373.0,0.00124916]
[1731209777474,0.393808,77385.0,77375.0,0.032292]
[1731209777678,0.393088,77385.0,77375.0,0.032292]
[1731209777977,0.40901367,77385.0,77376.0,0.032]
[1731209778183,0.37672567,77385.0,77376.0,0.03324916]
[1731209779086,0.37672567,77385.0,77380.0,0.00124916]
[1731209780383,0.37672567,77385.0,77382.0,0.00124916]
[1731209781174,0.37672567,77385.0,77383.0,0.10932916]
[1731209782182,0.01592567,77385.0,77384.0,0.00124916]
[1731209782383,0.13526133,77386.0,77384.0,0.00124916]
[1731209783176,0.13526133,77386.0,77385.0,0.00124916]
[1731209783688,0.13526133,77386.0,77385.0,0.00223873]
[1731209785583,0.15105079,77386.0,77385.0,0.00223873]
[1731209792180,0.51185079,77386.0,77385.0,0.00223873]
[1731209794295,1.09285498,77386.0,77355.0,0.4346]
[1731209794487,0.3608,77365.0,77363.0,0.10808]
[1731209796084,0.3608,77365.0,77356.0,0.00193877]
[1731209796394,0.393099,77358.0,77356.0,0.00193877]
[1731209797396,0.14870046,77357.0,77356.0,0.00193877]
[1731209799092,0.0307,77357.0,77356.0,0.00193877]
[1731209799396,0.40950002,77358.0,77349.0,0.10808]
[1731209799397,0.37720102,77358.0,77349.0,0.14672672]
[1731209799600,0.3608,77351.0,77349.0,0.14672672]
[1731209799792,0.3608,77351.0,77349.0,0.10808]
[1731209799992,0.3109,77351.0,77350.0,0.55546572]
[1731209800193,0.00072,77366.0,77365.0,0.032296]
[1731209800388,0.3866547,77375.0,77365.0,0.032296]
[1731209800588,0.3608,77375.0,77365.0,0.032296]
[1731209801198,0.3608,77375.0,77365.0,0.07088637]
[1731209801401,0.3608,77375.0,77366.0,0.03859037]
[1731209801591,0.37689663,77375.0,77366.0,0.03859037]
[1731209801899,0.37689663,77375.0,77365.0,0.03859037]
[1731209802094,0.37689663,77375.0,77364.0,0.14667037]
[1731209802396,0.37689663,77375.0,77364.0,0.12080037]
[1731209802599,0.13532372,77370.0,77364.0,0.12080037]
[1731209802792,0.3608,77368.0,77362.0,0.10808]
[1731209802989,0.032295,77367.0,77362.0,0.10808]
[1731209803193,0.093095,77367.0,77362.0,0.10808]
[1731209803491,0.093095,77367.0,77358.0,0.03859037]
[1731209803697,0.093095,77367.0,77359.0,0.10784]
[1731209804099,0.093095,77367.0,77359.0,0.14643037]
[1731209805400,0.093095,77367.0,77360.0,0.03859037]
[1731209805594,0.093095,77367.0,77359.0,0.14643037]
[1731209805794,0.093095,77367.0,77359.0,0.10784]
[1731209806807,0.3608,77368.0,77359.0,0.10784]
[1731209807106,0.3608,77368.0,77366.0,0.032295]
[1731209807294,0.00068,77375.0,77368.0,0.032295]
[1731209807295,0.3608,77375.0,77368.0,0.032295]
[1731209807493,0.3608,77375.0,77369.0,0.10784]
[1731209809899,0.3608,77375.0,77369.0,0.140134]
[1731209813208,0.3608,77375.0,77369.0,0.10784]
[1731209813408,0.3608,77375.0,77370.0,0.032294]
[1731209814610,0.3608,77375.0,77371.0,0.032293]
[1731209817608,0.3608,77375.0,77373.0,0.00124862]
[1731209818314,0.49612372,77375.0,77373.0,0.00124862]
[1731209818505,0.49612372,77375.0,77374.0,0.00124862]
[1731209818708,0.49612372,77375.0,77374.0,0.00177175]
[1731209821209,0.52792372,77375.0,77374.0,0.00177175]
[1731209823615,0.3608,77375.0,77374.0,0.00177175]
[1731209825313,0.49612372,77375.0,77374.0,0.00177175]
[1731209825718,0.52841572,77375.0,77374.0,0.00301973]
[1731209826617,0.52841572,77375.0,77361.0,0.03859037]
[1731209826618,1.07710337,77375.0,77361.0,0.03859037]
[1731209826817,0.3608,77362.0,77360.0,0.03859037]
[1731209827019,0.0645,77361.0,77360.0,0.03859037]
[1731209827420,0.0645,77361.0,77356.0,0.11612383]
[1731209827421,0.0645,77361.0,77357.0,0.05145383]
[1731209828016,0.4253,77361.0,77357.0,0.05145383]
[1731209828426,0.4253,77361.0,77358.0,0.05145383]
[1731209828819,0.4253,77361.0,77356.0,0.06467]
[1731209829825,0.4573,77361.0,77356.0,0.06467]
[1731209832634,0.47336137,77361.0,77356.0,0.06467]
[1731209833029,0.44036137,77361.0,77356.0,0.06467]
[1731209834230,0.032299,77359.0,77356.0,0.06467]
[1731209834831,0.13532372,77357.0,77356.0,0.06467]
[1731209837138,0.032299,77359.0,77356.0,0.06467]
[1731209837536,0.44104137,77361.0,77356.0,0.06467]
[1731209837732,0.44036137,77361.0,77360.0,0.05161159]
[1731209838328,0.44036137,77361.0,77356.0,0.06467]
[1731209838528,0.44036137,77361.0,77356.0,0.12917138]
[1731209839235,0.37686137,77361.0,77358.0,0.06450138]
[1731209839548,0.36148,77370.0,77359.0,0.21382238]
[1731209839740,0.36148,77370.0,77367.0,0.05160698]
[1731209839741,0.3608,77370.0,77367.0,0.05160698]
[1731209839943,0.3608,77370.0,77366.0,0.09679738]
[1731209840141,0.3608,77370.0,77367.0,0.06450138]
[1731209841839,0.3608,77370.0,77366.0,0.09679738]
[1731209842738,0.3608,77370.0,77367.0,0.06450138]
[1731209843435,0.3608,77370.0,77366.0,0.06450138]
[1731209843832,0.3608,77370.0,77365.0,0.10764]
[1731209844141,0.13532372,77369.0,77365.0,0.10764]
[1731209844443,0.032295,77368.0,77365.0,0.10764]
[1731209845544,0.16842372,77369.0,77349.0,0.0303]
[1731209845545,0.032296,77366.0,77358.0,0.03870894]
[1731209845842,0.13532372,77363.0,77358.0,0.03870894]
[1731209846052,0.13532372,77363.0,77356.0,0.14630894]
[1731209846053,0.3608,77362.0,77356.0,0.14630894]
[1731209846343,0.393097,77362.0,77356.0,0.14630894]
[1731209846548,0.393097,77362.0,77356.0,0.1076]
[1731209846953,0.032298,77361.0,77355.0,0.03870894]
[1731209847147,0.032298,77361.0,77356.0,0.06467]
[1731209847744,0.032298,77361.0,77356.0,0.10337894]
[1731209849447,0.032298,77361.0,77358.0,0.06467]
[1731209850148,0.3608,77362.0,77358.0,0.06467]
[1731209850454,0.3608,77362.0,77356.0,0.03870894]
[1731209850455,0.032299,77360.0,77357.0,0.06467]
[1731209850746,0.032299,77360.0,77357.0,0.10337894]
[1731209850948,0.032299,77360.0,77357.0,0.12917138]
[1731209852855,0.032299,77360.0,77358.0,0.06467]
[1731209855451,0.032299,77360.0,77358.0,0.12917138]
[1731209857052,0.032299,77360.0,77358.0,0.06467]
[1731209858255,0.032299,77360.0,77358.0,0.12917138]
[1731209861455,0.3608,77361.0,77358.0,0.12917138]
[1731209861649,0.3608,77361.0,77360.0,0.12917138]
[1731209861854,0.3608,77361.0,77360.0,0.15045122]
[1731209863345,0.3608,77361.0,77360.0,0.21499759]
[1731209863550,0.3608,77361.0,77360.0,0.06467]
[1731209864560,0.3608,77361.0,77359.0,0.12921637]
[1731209866053,0.3608,77361.0,77360.0,0.10339857]
[1731209867864,0.3608,77361.0,77357.0,0.06467]
[1731209868858,0.3608,77361.0,77360.0,0.10339941]
[1731209871158,0.3608,77361.0,77360.0,0.06467]
[1731209871363,0.44768421,77361.0,77360.0,0.06467]
[1731209872273,0.44768421,77361.0,77358.0,0.06467]
[1731209873164,0.44768421,77361.0,77358.0,0.1163081]
[1731209873366,0.44768421,77361.0,77356.0,0.01583611]
[1731209873367,0.44768421,77361.0,77360.0,0.06467]
[1731209873960,0.44768421,77361.0,77360.0,0.15047843]
[1731209877263,0.47998221,77361.0,77360.0,0.15047843]
[1731209878464,0.56686642,77361.0,77360.0,0.1506774]
[1731209878663,0.76071539,77361.0,77360.0,0.0517032]
[1731209878970,0.032299,77359.0,77357.0,0.03877976]
[1731209879172,0.032299,77357.0,77354.0,0.03877976]
[1731209879373,0.16767962,77355.0,77354.0,0.03877976]
[1731209879868,0.032302,77351.0,77346.0,0.06462517]
[1731209880071,0.3608,77347.0,77346.0,0.06462517]
[1731209880670,0.3608,77347.0,77341.0,0.15814256]
[1731209880671,0.3608,77347.0,77345.0,0.06462517]
[1731209881172,0.3608,77347.0,77341.0,0.0807409]
[1731209884478,0.3608,77347.0,77346.0,0.03871722]
[1731209884677,0.3608,77347.0,77345.0,0.03871722]
[1731209886965,0.49617962,77347.0,77345.0,0.03871722]
[1731209887170,0.49617962,77347.0,77344.0,0.03871722]
[1731209887673,0.032304,77345.0,77344.0,0.03871722]
[1731209888075,0.032304,77345.0,77343.0,0.12929517]
[1731209888576,0.032304,77345.0,77343.0,0.06467]
[1731209889472,0.032304,77345.0,77342.0,0.06467]
[1731209891477,0.032304,77345.0,77341.0,0.06467]
[1731209894183,0.032304,77345.0,77341.0,0.12929517]
[1731209895582,0.49685962,77347.0,77341.0,0.12929517]
[1731209895778,0.49617962,77347.0,77343.0,0.06467]
[1731209896276,0.49617962,77347.0,77344.0,0.03868525]
[1731209896477,0.3608,77347.0,77345.0,0.03868525]
[1731209896678,0.3109,77347.0,77346.0,0.03868525]
[1731209896887,0.36148,77358.0,77345.0,0.38788]
[1731209897089,0.36148,77358.0,77355.0,0.03868388]
[1731209897090,0.3608,77358.0,77355.0,0.03868388]
[1731209897285,0.032293,77372.0,77359.0,0.032298]
[1731209897473,0.032293,77372.0,77360.0,0.03867349]
[1731209897675,0.032293,77372.0,77359.0,0.032298]
[1731209897676,0.13537962,77369.0,77362.0,0.03867349]
[1731209898485,0.13537962,77369.0,77361.0,0.03867349]
[1731209899392,0.13537962,77369.0,77362.0,0.03867349]
[1731209901377,0.13537962,77369.0,77361.0,0.10247149]
[1731209901779,0.49617962,77369.0,77361.0,0.10247149]
[1731209902190,0.49685962,77369.0,77361.0,0.10247149]
[1731209902591,0.49685962,77369.0,77362.0,0.10716]
[1731209905386,0.08685734,77367.0,77362.0,0.10716]
[1731209907394,0.08685734,77367.0,77362.0,0.14579289]
[1731209907689,0.00068,77369.0,77362.0,0.96867468]
[1731209907892,0.3608,77385.0,77380.0,0.03229]
[1731209908101,0.3608,77385.0,77380.0,0.13945]
[1731209908102,0.08685734,77383.0,77380.0,0.13945]
[1731209909292,0.08685734,77383.0,77380.0,0.15508295]
[1731209909492,0.3608,77385.0,77380.0,0.15508295]
[1731209909688,0.3608,77385.0,77384.0,0.032288]
[1731209910195,0.00193975,77390.0,77384.0,0.032288]
[1731209911699,0.00193975,77390.0,77384.0,0.07091878]
[1731209912093,0.00193975,77390.0,77384.0,0.032288]
[1731209916898,0.00193975,77390.0,77386.0,0.032287]
[1731209920714,0.00193975,77390.0,77380.0,0.12279295]
[1731209921003,0.00193975,77390.0,77380.0,0.15508195]
[1731209921406,0.00193975,77390.0,77381.0,0.393089]
[1731209922505,0.00193975,77390.0,77380.0,0.01563295]
[1731209922506,0.3608,77382.0,77380.0,0.01563295]
[1731209922811,0.3608,77382.0,77380.0,0.10712]
[1731209923113,0.032291,77377.0,77367.0,0.032295]
[1731209923299,0.032291,77377.0,77362.0,0.0325]
[1731209923300,0.393092,77375.0,77368.0,0.10712]
[1731209924413,0.393092,77375.0,77369.0,0.10712]
[1731209924699,0.13521744,77376.0,77369.0,0.10712]
[1731209925309,0.3608,77375.0,77369.0,0.10712]
[1731209926299,0.3608,77375.0,77372.0,0.03863078]
[1731209926496,0.3608,77375.0,77374.0,0.03863078]
[1731209927501,0.3608,77375.0,77369.0,0.10712]
[1731209927704,0.3608,77375.0,77374.0,0.03862695]
[1731209928109,0.3608,77375.0,77369.0,0.10712]
[1731209929703,0.393092,77375.0,77369.0,0.10712]
[1731209929898,0.3608,77375.0,77369.0,0.10712]
[1731209930204,0.3608,77375.0,77369.0,0.139414]
[1731209930403,0.393092,77375.0,77369.0,0.10712]
[1731209931902,0.032293,77374.0,77369.0,0.10712]
[1731209932105,0.13521744,77370.0,77364.0,0.06462517]
[1731209932414,0.13521744,77370.0,77369.0,0.03865034]
[1731209932602,0.13521744,77370.0,77369.0,0.03865023]
[1731209933518,0.08686358,77370.0,77365.0,0.10688]
[1731209933702,0.08686358,77366.0,77365.0,0.10688]
[1731209939809,0.36152,77371.0,77365.0,0.19374358]
[1731209940013,0.3608,77371.0,77368.0,0.05153729]
[1731209940211,0.3608,77371.0,77370.0,0.05153729]
[1731209940515,0.08686358,77376.0,77369.0,0.032294]
[1731209940716,0.08686358,77376.0,77375.0,0.03865127]
[1731209941311,0.08686358,77376.0,77369.0,0.032294]
[1731209941907,0.08686358,77370.0,77369.0,0.032294]
[1731209942311,0.08686358,77370.0,77365.0,0.10688]
[1731209942510,0.08686358,77366.0,77365.0,0.10688]
[1731209943819,0.08686358,77370.0,77365.0,0.10688]
[1731209944016,0.36134919,77372.0,77368.0,0.032295]
[1731209944315,0.36066919,77372.0,77368.0,0.032295]
[1731209945710,0.3608,77379.0,77370.0,0.08686358]
[1731209945914,0.3608,77387.0,77378.0,0.08686358]
[1731209946117,0.3608,77387.0,77385.0,0.032287]
[1731209947221,0.3608,77387.0,77382.0,0.03866211]
[1731209948113,0.3608,77387.0,77383.0,0.10688]
[1731209948617,0.3608,77387.0,77384.0,0.05154948]
[1731209949021,0.3608,77387.0,77385.0,0.05154948]
[1731209949611,0.032287,77386.0,77384.0,0.05154948]
[1731209949812,0.49670483,77387.0,77383.0,0.06722402]
[1731209950107,0.49602483,77387.0,77384.0,0.03867129]
[1731209950313,0.032288,77386.0,77384.0,0.03867129]
[1731209950509,0.032288,77386.0,77385.0,0.03867129]
[1731209950913,0.49670483,77387.0,77382.0,0.05154948]
[1731209951113,0.49602483,77387.0,77383.0,0.03867808]
[1731209951417,0.032291,77378.0,77377.0,0.03867808]
[1731209951612,0.032291,77376.0,77374.0,0.03867808]
[1731209951812,0.032292,77374.0,77373.0,0.03867808]
[1731209952318,0.062992,77374.0,77373.0,0.03867808]
[1731209953815,0.062992,77374.0,77370.0,0.15842948]
[1731209954219,0.062992,77374.0,77373.0,0.03869794]
[1731209954418,0.062992,77374.0,77370.0,0.15842948]
[1731209954617,0.062992,77374.0,77371.0,0.05154948]
[1731209954826,0.062992,77374.0,77370.0,0.15842948]
[1731209955012,0.062992,77374.0,77371.0,0.05154948]
[1731209955322,0.062992,77374.0,77373.0,0.03869539]
[1731209955714,0.062992,77374.0,77370.0,0.10688]
[1731209956526,0.3608,77378.0,77372.0,0.032293]
[1731209956822,0.032288,77385.0,77374.0,0.032292]
[1731209957019,0.13522483,77382.0,77374.0,0.032292]
[1731209961221,0.13522483,77382.0,77374.0,0.04822377]
[1731209963221,0.032289,77381.0,77374.0,0.04822377]
[1731209966134,0.0625,77386.0,77376.0,0.032291]
[1731209967028,0.0625,77386.0,77383.0,0.0386879]
[1731209967330,0.36148,77387.0,77385.0,0.0386879]
[1731209967632,0.3608,77387.0,77386.0,0.0386879]
[1731209969428,0.3608,77387.0,77383.0,0.15818948]
[1731209969631,0.3608,77387.0,77385.0,0.05154948]
[1731209969828,0.0306,77395.0,77385.0,0.05154948]
[1731209970129,0.00068,77396.0,77389.0,0.08383548]
[1731209970431,0.3608,77404.0,77389.0,0.032286]
[1731209970825,0.3608,77404.0,77387.0,0.06443685]
[1731209970826,0.3608,77404.0,77388.0,0.0306]
[1731209971026,0.3608,77404.0,77395.0,0.032283]
[1731209971231,0.3608,77404.0,77396.0,0.10664]
[1731209971422,0.3608,77404.0,77395.0,0.032283]
[1731209971734,0.3608,77404.0,77397.0,0.10664]
[1731209972330,0.13522483,77399.0,77392.0,0.3608]
[1731209972627,0.16750983,77393.0,77390.0,0.10664]
[1731209972822,0.13522483,77393.0,77385.0,0.10664]
[1731209973023,0.3608,77386.0,77385.0,0.10664]
[1731209973428,0.3608,77386.0,77383.0,0.10664]
[1731209974328,0.393088,77386.0,77383.0,0.10664]
[1731209976332,0.393088,77386.0,77383.0,0.08077]
[1731209979027,0.393088,77386.0,77385.0,0.03866429]
[1731209979526,0.393088,77386.0,77384.0,0.03866429]
[1731209979925,0.393088,77386.0,77383.0,0.11943429]
[1731209980130,0.393088,77386.0,77384.0,0.03866429]
[1731209980838,0.393088,77386.0,77383.0,0.08077]
[1731209981436,0.393088,77386.0,77385.0,0.03866613]
[1731209981737,0.393088,77386.0,77383.0,0.08077]
[1731209982333,0.393088,77386.0,77383.0,0.13232239]
[1731209983329,0.3608,77386.0,77383.0,0.13232239]
[1731209984535,0.3608,77386.0,77385.0,0.05155239]
[1731209984728,0.3608,77386.0,77383.0,0.08077]
[1731209989436,0.3608,77386.0,77384.0,0.032288]
[1731209990341,0.3608,77386.0,77384.0,0.062688]
[1731209993137,0.3608,77386.0,77385.0,0.14735976]
[1731209995647,0.3608,77386.0,77385.0,0.08292291]
[1731209998647,0.3608,77386.0,77385.0,0.14743402]
[1731209999439,0.3608,77386.0,77384.0,0.12719911]
[1731209999633,0.13522483,77393.0,77384.0,0.12719911]
[1731209999634,0.13522483,77393.0,77384.0,0.09491111]
[1731209999841,0.13522483,77393.0,77392.0,0.03870687]
[1731210000235,0.13522483,77393.0,77389.0,0.05160917]
[1731210000436,0.37741015,77395.0,77389.0,0.05160917]
[1731210000437,0.54491898,77395.0,77389.0,0.05160917]
[1731210000649,0.54423898,77395.0,77392.0,0.03871022]
[1731210000948,0.54423898,77395.0,77393.0,0.03871022]
[1731210001651,0.54423898,77395.0,77394.0,0.03871022]
[1731210002046,0.54423898,77395.0,77393.0,0.03871022]
[1731210002252,0.54423898,77395.0,77390.0,0.05160917]
[1731210002253,0.54423898,77395.0,77394.0,0.03871022]
[1731210002451,0.54423898,77395.0,77393.0,0.03871022]
[1731210002652,0.54423898,77395.0,77394.0,0.03871022]
[1731210003349,0.54423898,77395.0,77391.0,0.02573917]
[1731210003350,0.46353859,77395.0,77391.0,0.02573917]
[1731210003549,0.46353859,77395.0,77388.0,0.032286]
[1731210003751,0.46353859,77395.0,77388.0,0.09679711]
[1731210004253,0.46353859,77395.0,77388.0,0.032286]
[1731210004752,0.3608,77395.0,77388.0,0.08680844]
[1731210004949,0.3608,77395.0,77392.0,0.032284]
[1731210005346,0.08680844,77393.0,77392.0,0.032284]
[1731210006448,0.08680844,77393.0,77388.0,0.08036831]
[1731210007047,0.08680844,77393.0,77388.0,0.11265431]
[1731210007357,0.032286,77391.0,77387.0,0.1064]
[1731210007655,0.08680844,77388.0,77387.0,0.1064]
[1731210009353,0.032286,77391.0,77387.0,0.1064]
[1731210010263,0.393086,77391.0,77387.0,0.1064]
[1731210011846,0.032286,77391.0,77387.0,0.1064]
[1731210012162,0.393086,77391.0,77387.0,0.1064]
[1731210014258,0.393086,77391.0,77387.0,0.14512607]
[1731210015564,0.3608,77390.0,77387.0,0.03872607]
[1731210015766,0.3608,77390.0,77372.0,0.1064]
[1731210015767,0.03081727,77389.0,77372.0,0.1064]
[1731210015961,0.3608,77374.0,77371.0,0.00193842]
[1731210016168,0.3608,77374.0,77373.0,0.06451111]
[1731210016358,0.0631,77373.0,77371.0,0.00193842]
[1731210016558,0.0934,77373.0,77371.0,0.00193842]
[1731210016957,0.032293,77372.0,77371.0,0.00193842]
[1731210017169,0.0934,77373.0,77362.0,0.06451111]
[1731210017170,0.032296,77365.0,77362.0,0.06451111]
[1731210017467,0.3608,77363.0,77357.0,0.17067111]
[1731210018358,0.3608,77363.0,77357.0,0.10616]
[1731210023084,0.3608,77363.0,77356.0,0.0323]
[1731210023268,0.3608,77363.0,77356.0,0.20301111]
[1731210023469,0.3608,77363.0,77356.0,0.1385]
[1731210030885,0.3608,77363.0,77360.0,0.032298]
[1731210031085,0.16108933,77379.0,77361.0,0.0311]
[1731210031287,0.032292,77376.0,77368.0,0.08683871]
[1731210031483,0.08683871,77372.0,77368.0,0.138495]
[1731210032380,0.08683871,77372.0,77368.0,0.1062]
[1731210032884,0.11913171,77372.0,77368.0,0.1062]
[1731210033193,0.11913171,77372.0,77366.0,0.1062]
[1731210033194,0.08683871,77370.0,77366.0,0.1062]
[1731210033391,0.032296,77365.0,77361.0,0.1062]
[1731210034388,0.13533004,77367.0,77358.0,0.1062]
[1731210034389,0.393097,77364.0,77358.0,0.1062]
[1731210038092,0.393097,77364.0,77360.0,0.032298]
[1731210038093,0.3608,77364.0,77360.0,0.032298]
[1731210038294,0.3608,77364.0,77358.0,0.1062]
[1731210039382,0.3608,77364.0,77358.0,0.12198049]
[1731210042089,0.3608,77364.0,77358.0,0.01578049]
[1731210042288,0.3608,77364.0,77357.0,0.17071111]
[1731210042488,0.393097,77364.0,77357.0,0.17071111]
[1731210043289,0.393097,77364.0,77358.0,0.14978615]
[1731210043483,0.393097,77364.0,77358.0,0.06451111]
[1731210043993,0.3608,77364.0,77359.0,0.14971368]
[1731210044189,0.3608,77364.0,77361.0,0.06451111]
[1731210044392,0.3608,77364.0,77357.0,0.21582322]
[1731210044393,0.3608,77364.0,77362.0,0.06451111]
[1731210045198,0.3608,77364.0,77363.0,0.0853155]
[1731210045789,0.3608,77364.0,77362.0,0.06457949]
[1731210045990,0.062897,77363.0,77362.0,0.06457949]
[1731210046187,0.032298,77361.0,77360.0,0.06457949]
[1731210046384,0.032302,77352.0,77350.0,0.0156657]
[1731210046591,0.3608,77351.0,77346.0,0.17271849]
[1731210047187,0.3608,77351.0,77346.0,0.108139]
[1731210047384,0.3608,77351.0,77346.0,0.001939]
[1731210047599,0.032302,77350.0,77346.0,0.001939]
[1731210049298,0.032302,77350.0,77346.0,0.01741591]
[1731210049502,0.032302,77350.0,77346.0,0.001939]
[1731210049886,0.13533004,77347.0,77346.0,0.001939]
[1731210050092,0.032303,77348.0,77334.0,0.06457949]
[1731210050394,0.032303,77348.0,77333.0,0.106]
[1731210050395,0.3608,77340.0,77333.0,0.106]
[1731210050599,0.032309,77335.0,77333.0,0.106]
[1731210051390,0.032309,77335.0,77329.0,0.01552914]
[1731210051594,0.3608,77332.0,77330.0,0.106]
[1731210053501,0.3608,77332.0,77331.0,0.16360743]
[1731210054097,0.3608,77332.0,77331.0,0.08628321]
[1731210054298,0.032309,77335.0,77331.0,0.08628321]
[1731210054497,0.032309,77335.0,77332.0,0.08628321]
[1731210054804,0.032309,77335.0,77333.0,0.08628321]
[1731210054994,0.032309,77335.0,77334.0,0.08628321]
[1731210055704,0.032309,77335.0,77334.0,0.08591326]
[1731210056198,0.032309,77335.0,77334.0,0.15031061]
[1731210056593,0.3608,77340.0,77334.0,0.15031061]
[1731210056789,0.3608,77340.0,77335.0,0.0655]
[1731210057503,0.13533004,77338.0,77334.0,0.06439735]
[1731210058703,0.393787,77340.0,77334.0,0.06439735]
[1731210059002,0.393107,77340.0,77334.0,0.06439735]
[1731210059196,0.3608,77340.0,77334.0,0.06439735]
[1731210059395,0.3608,77340.0,77335.0,0.032309]
[1731210059595,0.3608,77340.0,77335.0,0.09670635]
[1731210060196,0.3608,77340.0,77337.0,0.032308]
[1731210060398,0.36148,77349.0,77339.0,0.032307]
[1731210060601,0.3608,77349.0,77340.0,0.28865584]
[1731210060797,0.3608,77349.0,77341.0,0.06439735]
[1731210060798,0.13533004,77348.0,77341.0,0.06439735]
[1731210060999,0.13533004,77343.0,77341.0,0.06439735]
[1731210061301,0.13533004,77343.0,77340.0,0.20289735]
[1731210061505,0.13533004,77343.0,77340.0,0.106]
[1731210062004,0.032306,77342.0,77340.0,0.12218829]
[1731210062706,0.032306,77342.0,77339.0,0.106]
[1731210062898,0.13533004,77337.0,77335.0,0.106]
[1731210068500,0.13533004,77337.0,77335.0,0.17039735]
[1731210068696,0.13533004,77337.0,77335.0,0.106]
[1731210069597,0.13533004,77337.0,77335.0,0.17039735]
[1731210070001,0.13533004,77337.0,77335.0,0.106]
[1731210070209,0.13533004,77337.0,77335.0,0.17039735]
[1731210070506,0.032306,77342.0,77337.0,0.032308]
[1731210070507,0.13533004,77342.0,77337.0,0.032308]
[1731210071796,0.13533004,77342.0,77337.0,0.09670535]
[1731210073301,0.13533004,77342.0,77338.0,0.15029305]
[1731210073500,0.13533004,77342.0,77338.0,0.06439735]
[1731210074211,0.13533004,77342.0,77340.0,0.06439735]
[1731210075203,0.0331,77346.0,77343.0,0.032305]
[1731210075404,0.0331,77346.0,77338.0,0.43813159]
[1731210075405,0.032304,77347.0,77345.0,0.06453353]
[1731210075706,0.032304,77347.0,77346.0,0.06453353]
[1731210075910,0.032304,77345.0,77343.0,0.06453353]
[1731210076104,0.0323,77349.0,77341.0,0.06453353]
[1731210076405,0.3608,77345.0,77342.0,0.06457192]
[1731210076601,0.3608,77345.0,77343.0,0.06457192]
[1731210076802,0.44771081,77345.0,77344.0,0.06457192]
[1731210077007,0.44771081,77345.0,77344.0,0.08452617]